[Event "Titled Tuesday Blitz June 13 Late 2023"]
[White "Kovalev, Vladislav"]
[Black "Krishnakumar, Sriram"]
[WhiteFideId "13504398"]
[BlackFideId "30915856"]
[WhiteElo "2555"]
[BlackElo "2483"]
[Result "1-0"]
[Round "1"]
[TimeControl "180+2"]
[Date "2023.06.13"]
[WhiteClock "0:00:37"]
[BlackClock "0:00:20"]
[Board "36"]

1. e4 {[%clk 0:03:00]}  e5 {[%clk 0:02:58]} 2. Nf3 {[%clk 0:03:00]}  Nc6 {[%clk 0:02:56]} 3. Bb5 {[%clk 0:03:00]}  a6 {[%clk 0:02:55]} 4. Ba4 {[%clk 0:03:00]}  Nf6 {[%clk 0:02:55]} 5. O-O {[%clk 0:03:01]}  b5 {[%clk 0:02:54]} 6. Bb3 {[%clk 0:03:00]}  Bc5 {[%clk 0:02:55]} 7. a4 {[%clk 0:03:01]}  Rb8 {[%clk 0:02:54]} 8. c3 {[%clk 0:03:01]}  d6 {[%clk 0:02:54]} 9. d4 {[%clk 0:03:02]}  Bb6 {[%clk 0:02:55]} 10. a5 {[%clk 0:03:02]}  Ba7 {[%clk 0:02:55]} 11. Be3 {[%clk 0:03:03]}  Qe7 {[%clk 0:02:41]} 12. h3 {[%clk 0:02:55]}  O-O {[%clk 0:02:40]} 13. Re1 {[%clk 0:02:54]}  Rd8 {[%clk 0:02:39]} 14. Nbd2 {[%clk 0:02:53]}  Bb7 {[%clk 0:02:27]} 15. Qe2 {[%clk 0:02:32]}  exd4 {[%clk 0:02:26]} 16. cxd4 {[%clk 0:02:27]}  Nb4 {[%clk 0:02:25]} 17. d5 {[%clk 0:02:17]}  Bxe3 {[%clk 0:02:19]} 18. Qxe3 {[%clk 0:02:18]}  c5 {[%clk 0:02:18]} 19. dxc6 {[%clk 0:02:18]}  Nxc6 {[%clk 0:02:18]} 20. Nh4 {[%clk 0:01:58]}  Ne5 {[%clk 0:01:52]} 21. Nf5 {[%clk 0:01:54]}  Qf8 {[%clk 0:01:53]} 22. Rad1 {[%clk 0:01:41]}  Nc4 {[%clk 0:01:42]} 23. Nxc4 {[%clk 0:01:15]}  bxc4 {[%clk 0:01:43]} 24. Bc2 {[%clk 0:01:15]}  g6 {[%clk 0:01:39]} 25. Qd4 {[%clk 0:01:07]}  Nh5 {[%clk 0:01:21]} 26. Nxd6 {[%clk 0:01:04]}  Nf4 {[%clk 0:01:12]} 27. Qe5 {[%clk 0:01:00]}  Ne6 {[%clk 0:00:52]} 28. Nxc4 {[%clk 0:00:56]}  Rdc8 {[%clk 0:00:51]} 29. b3 {[%clk 0:00:51]}  Rc5 {[%clk 0:00:50]} 30. Qf6 {[%clk 0:00:49]}  Rd8 {[%clk 0:00:42]} 31. Rxd8 {[%clk 0:00:49]}  Qxd8 {[%clk 0:00:43]} 32. Qxd8+ {[%clk 0:00:49]}  Nxd8 {[%clk 0:00:44]} 33. Rd1 {[%clk 0:00:50]}  Nc6 {[%clk 0:00:44]} 34. Rd7 {[%clk 0:00:46]}  Bc8 {[%clk 0:00:41]} 35. Rc7 {[%clk 0:00:47]}  Be6 {[%clk 0:00:41]} 36. Bd3 {[%clk 0:00:44]}  Kf8 {[%clk 0:00:36]} 37. b4 {[%clk 0:00:35]}  Nxb4 {[%clk 0:00:32]} 38. Rxc5 {[%clk 0:00:36]}  Nxd3 {[%clk 0:00:33]} 39. Rc7 {[%clk 0:00:37]}  Bxc4 {[%clk 0:00:26]} 40. Rxc4 {[%clk 0:00:36]}  Ke7 {[%clk 0:00:27]} 41. Rc6 {[%clk 0:00:36]}  Nb4 {[%clk 0:00:27]} 42. Rb6 {[%clk 0:00:36]}  Nd3 {[%clk 0:00:25]} 43. Rxa6 {[%clk 0:00:36]}  Nc5 {[%clk 0:00:25]} 44. Rb6 {[%clk 0:00:37]}  Nxe4 {[%clk 0:00:20]} 45. a6 {[%clk 0:00:37]} 1-0


[Site "https://www.chess.com"]

[Event "Titled Tuesday Blitz June 13 Late 2023"]
[White "Aravindh, Chithambaram VR."]
[Black "Yurasova, Daria"]
[WhiteFideId "5072786"]
[BlackFideId "34146919"]
[WhiteElo "2596"]
[BlackElo "2109"]
[Result "1-0"]
[Round "1"]
[TimeControl "180+2"]
[Date "2023.06.13"]
[WhiteClock "0:00:22"]
[BlackClock "0:00:05"]
[Board "38"]

1. d4 {[%clk 0:02:57]}  d5 {[%clk 0:02:58]} 2. Nf3 {[%clk 0:02:57]}  Nf6 {[%clk 0:02:54]} 3. c3 {[%clk 0:02:56]}  Bf5 {[%clk 0:02:47]} 4. Bf4 {[%clk 0:02:55]}  e6 {[%clk 0:02:17]} 5. e3 {[%clk 0:02:54]}  Nbd7 {[%clk 0:01:58]} 6. h3 {[%clk 0:02:46]}  Bd6 {[%clk 0:01:54]} 7. Bxd6 {[%clk 0:02:45]}  cxd6 {[%clk 0:01:54]} 8. Nbd2 {[%clk 0:02:46]}  O-O {[%clk 0:01:39]} 9. Be2 {[%clk 0:02:46]}  a6 {[%clk 0:01:35]} 10. O-O {[%clk 0:02:46]}  b5 {[%clk 0:01:35]} 11. a4 {[%clk 0:02:46]}  Rb8 {[%clk 0:01:32]} 12. b4 {[%clk 0:02:30]}  Ne4 {[%clk 0:01:28]} 13. Nxe4 {[%clk 0:02:28]}  Bxe4 {[%clk 0:01:28]} 14. Nd2 {[%clk 0:02:26]}  Bg6 {[%clk 0:01:27]} 15. axb5 {[%clk 0:02:25]}  axb5 {[%clk 0:01:27]} 16. Ra5 {[%clk 0:02:26]}  Qc7 {[%clk 0:01:23]} 17. Qb3 {[%clk 0:02:18]}  Rfc8 {[%clk 0:01:19]} 18. Rc1 {[%clk 0:02:16]}  Qc6 {[%clk 0:01:07]} 19. Qd1 {[%clk 0:02:04]}  Rb7 {[%clk 0:00:52]} 20. Qf1 {[%clk 0:02:01]}  Rcb8 {[%clk 0:00:52]} 21. Nb3 {[%clk 0:02:01]}  Nf6 {[%clk 0:00:43]} 22. Raa1 {[%clk 0:01:51]}  Qc7 {[%clk 0:00:38]} 23. Ra5 {[%clk 0:01:46]}  Qc6 {[%clk 0:00:37]} 24. f3 {[%clk 0:01:41]}  h5 {[%clk 0:00:36]} 25. h4 {[%clk 0:01:40]}  Nh7 {[%clk 0:00:25]} 26. Qe1 {[%clk 0:01:39]}  f6 {[%clk 0:00:25]} 27. Rca1 {[%clk 0:01:37]}  Be8 {[%clk 0:00:24]} 28. Ra8 {[%clk 0:01:35]}  Qc8 {[%clk 0:00:21]} 29. Rxb8 {[%clk 0:01:34]}  Qxb8 {[%clk 0:00:22]} 30. Ra6 {[%clk 0:01:28]}  Nf8 {[%clk 0:00:17]} 31. Qa1 {[%clk 0:01:08]}  Qc7 {[%clk 0:00:16]} 32. Ra8 {[%clk 0:01:05]}  Rb8 {[%clk 0:00:16]} 33. Rxb8 {[%clk 0:00:47]}  Qxb8 {[%clk 0:00:17]} 34. Qa6 {[%clk 0:00:47]}  Qc7 {[%clk 0:00:15]} 35. Qa1 {[%clk 0:00:45]}  Ng6 {[%clk 0:00:14]} 36. g3 {[%clk 0:00:45]}  Ne7 {[%clk 0:00:14]} 37. Kf2 {[%clk 0:00:45]}  Nf5 {[%clk 0:00:15]} 38. Bd3 {[%clk 0:00:41]}  Ne7 {[%clk 0:00:13]} 39. Nc1 {[%clk 0:00:38]}  g5 {[%clk 0:00:08]} 40. Ne2 {[%clk 0:00:38]}  gxh4 {[%clk 0:00:08]} 41. gxh4 {[%clk 0:00:39]}  Bg6 {[%clk 0:00:08]} 42. Bxb5 {[%clk 0:00:34]}  Kf7 {[%clk 0:00:07]} 43. Qa8 {[%clk 0:00:32]}  Nf5 {[%clk 0:00:08]} 44. Be8+ {[%clk 0:00:25]}  Kg7 {[%clk 0:00:08]} 45. Bxg6 {[%clk 0:00:26]}  Kxg6 {[%clk 0:00:09]} 46. Qg8+ {[%clk 0:00:24]}  Kh6 {[%clk 0:00:06]} 47. Qxe6 {[%clk 0:00:24]}  Nxh4 {[%clk 0:00:05]} 48. Qxf6+ {[%clk 0:00:24]}  Ng6 {[%clk 0:00:06]} 49. Nf4 {[%clk 0:00:24]}  Qg7 {[%clk 0:00:03]} 50. Qxg6+ {[%clk 0:00:22]}  Qxg6 {[%clk 0:00:04]} 51. Nxg6 {[%clk 0:00:22]}  Kxg6 {[%clk 0:00:05]} 1-0


[Site "https://www.chess.com"]

[Event "Titled Tuesday Blitz June 13 Late 2023"]
[White "Fressinet, Laurent"]
[Black "Mika, Tomasz"]
[WhiteFideId "608742"]
[BlackFideId "1132970"]
[WhiteElo "2633"]
[BlackElo "2186"]
[Result "1-0"]
[Round "1"]
[TimeControl "180+2"]
[Date "2023.06.13"]
[WhiteClock "0:01:03"]
[BlackClock "0:00:03"]
[Board "40"]

1. d4 {[%clk 0:02:59]}  Nf6 {[%clk 0:02:59]} 2. Nf3 {[%clk 0:02:59]}  e6 {[%clk 0:02:59]} 3. Bg5 {[%clk 0:02:59]}  Be7 {[%clk 0:02:58]} 4. Nbd2 {[%clk 0:02:58]}  O-O {[%clk 0:02:58]} 5. e4 {[%clk 0:02:57]}  d5 {[%clk 0:02:58]} 6. e5 {[%clk 0:02:57]}  Nfd7 {[%clk 0:02:56]} 7. Bxe7 {[%clk 0:02:49]}  Qxe7 {[%clk 0:02:57]} 8. Bd3 {[%clk 0:02:49]}  c5 {[%clk 0:02:56]} 9. c3 {[%clk 0:02:49]}  Nc6 {[%clk 0:02:55]} 10. O-O {[%clk 0:02:48]}  b6 {[%clk 0:02:52]} 11. Qe2 {[%clk 0:02:44]}  a5 {[%clk 0:02:45]} 12. Bb5 {[%clk 0:02:37]}  Bb7 {[%clk 0:02:42]} 13. Qe3 {[%clk 0:02:35]}  cxd4 {[%clk 0:02:36]} 14. cxd4 {[%clk 0:02:34]}  Rfc8 {[%clk 0:02:32]} 15. a3 {[%clk 0:02:33]}  Ba6 {[%clk 0:02:27]} 16. Bxa6 {[%clk 0:02:31]}  Rxa6 {[%clk 0:02:28]} 17. Rac1 {[%clk 0:02:31]}  Ra7 {[%clk 0:02:25]} 18. Rc3 {[%clk 0:02:29]}  Rac7 {[%clk 0:02:22]} 19. Rfc1 {[%clk 0:02:29]}  Qd8 {[%clk 0:02:21]} 20. Qd3 {[%clk 0:02:26]}  Na7 {[%clk 0:02:18]} 21. h4 {[%clk 0:02:22]}  h6 {[%clk 0:02:12]} 22. Nf1 {[%clk 0:02:17]}  b5 {[%clk 0:02:09]} 23. Ne3 {[%clk 0:02:14]}  Nb6 {[%clk 0:02:04]} 24. b3 {[%clk 0:02:05]}  Rxc3 {[%clk 0:01:56]} 25. Rxc3 {[%clk 0:02:04]}  Rc7 {[%clk 0:01:52]} 26. Qc2 {[%clk 0:01:57]}  Rxc3 {[%clk 0:01:45]} 27. Qxc3 {[%clk 0:01:57]}  a4 {[%clk 0:01:44]} 28. Qa5 {[%clk 0:01:50]}  Qc7 {[%clk 0:01:38]} 29. bxa4 {[%clk 0:01:49]}  bxa4 {[%clk 0:01:35]} 30. g3 {[%clk 0:01:48]}  Nac8 {[%clk 0:01:21]} 31. Kg2 {[%clk 0:01:41]}  Qe7 {[%clk 0:01:04]} 32. Qc3 {[%clk 0:01:36]}  Qd7 {[%clk 0:01:02]} 33. h5 {[%clk 0:01:30]}  Qb5 {[%clk 0:01:00]} 34. Qc7 {[%clk 0:01:24]}  Qd7 {[%clk 0:00:58]} 35. Qc1 {[%clk 0:01:19]}  Qb5 {[%clk 0:00:54]} 36. Ng4 {[%clk 0:01:19]}  Nc4 {[%clk 0:00:50]} 37. Nxh6+ {[%clk 0:01:17]}  gxh6 {[%clk 0:00:49]} 38. Qxh6 {[%clk 0:01:18]}  Qb1 {[%clk 0:00:31]} 39. Qg5+ {[%clk 0:01:12]}  Kh7 {[%clk 0:00:26]} 40. Qd8 {[%clk 0:01:11]}  Qe4 {[%clk 0:00:15]} 41. Qxc8 {[%clk 0:01:03]}  Nd2 {[%clk 0:00:15]} 42. Qc3 {[%clk 0:01:03]}  Nxf3 {[%clk 0:00:08]} 43. Qxf3 {[%clk 0:01:04]}  Qxd4 {[%clk 0:00:03]} 44. Qxf7+ {[%clk 0:01:03]}  Kh6 {[%clk 0:00:03]} 45. Qg6# {[%clk 0:01:03]} 1-0


[Site "https://www.chess.com"]

[Event "Titled Tuesday Blitz June 13 Late 2023"]
[White "Kokoszczynski, Jan"]
[Black "Elsa167"]
[WhiteFideId "1174460"]
[WhiteElo "2139"]
[BlackElo "2882"]
[Result "0-1"]
[Round "1"]
[TimeControl "180+2"]
[Date "2023.06.13"]
[WhiteClock "0:00:03"]
[BlackClock "0:00:04"]
[Board "41"]

1. d4 {[%clk 0:02:55]}  Nf6 {[%clk 0:02:59]} 2. c4 {[%clk 0:02:55]}  e6 {[%clk 0:03:00]} 3. Nc3 {[%clk 0:02:53]}  d5 {[%clk 0:03:00]} 4. cxd5 {[%clk 0:02:52]}  exd5 {[%clk 0:03:01]} 5. Bg5 {[%clk 0:02:52]}  Be7 {[%clk 0:03:02]} 6. e3 {[%clk 0:02:51]}  O-O {[%clk 0:03:02]} 7. Bd3 {[%clk 0:02:51]}  Re8 {[%clk 0:03:03]} 8. Nf3 {[%clk 0:02:49]}  c6 {[%clk 0:03:01]} 9. h3 {[%clk 0:02:49]}  h6 {[%clk 0:03:00]} 10. Bf4 {[%clk 0:02:49]}  Bd6 {[%clk 0:03:00]} 11. Ne5 {[%clk 0:02:35]}  Qe7 {[%clk 0:03:00]} 12. O-O {[%clk 0:02:32]}  Nbd7 {[%clk 0:03:00]} 13. Nxd7 {[%clk 0:02:32]}  Bxd7 {[%clk 0:03:00]} 14. Bxd6 {[%clk 0:02:32]}  Qxd6 {[%clk 0:03:01]} 15. Rb1 {[%clk 0:02:28]}  a5 {[%clk 0:03:01]} 16. Qc2 {[%clk 0:02:25]}  Re7 {[%clk 0:02:50]} 17. Rfc1 {[%clk 0:02:25]}  Rae8 {[%clk 0:02:28]} 18. a3 {[%clk 0:02:20]}  g6 {[%clk 0:02:21]} 19. Na4 {[%clk 0:02:19]}  Ne4 {[%clk 0:02:17]} 20. Bxe4 {[%clk 0:02:12]}  Rxe4 {[%clk 0:02:11]} 21. Nc5 {[%clk 0:02:12]}  Bf5 {[%clk 0:02:04]} 22. Nxe4 {[%clk 0:02:07]}  Bxe4 {[%clk 0:02:05]} 23. Qc5 {[%clk 0:02:07]}  Qxc5 {[%clk 0:02:06]} 24. dxc5 {[%clk 0:02:03]}  Bxb1 {[%clk 0:02:06]} 25. Rxb1 {[%clk 0:02:04]}  Re4 {[%clk 0:02:02]} 26. Rc1 {[%clk 0:01:58]}  f5 {[%clk 0:01:57]} 27. Kf1 {[%clk 0:01:58]}  Kf7 {[%clk 0:01:53]} 28. Rc3 {[%clk 0:01:42]}  a4 {[%clk 0:01:51]} 29. Ke2 {[%clk 0:01:37]}  Re8 {[%clk 0:01:44]} 30. Rd3 {[%clk 0:01:34]}  Ra8 {[%clk 0:01:44]} 31. Rd4 {[%clk 0:01:33]}  Ra5 {[%clk 0:01:44]} 32. Rb4 {[%clk 0:01:33]}  Rxc5 {[%clk 0:01:31]} 33. Rxb7+ {[%clk 0:01:33]}  Kf6 {[%clk 0:01:31]} 34. Kd2 {[%clk 0:01:17]}  h5 {[%clk 0:01:19]} 35. h4 {[%clk 0:01:15]}  Rc4 {[%clk 0:01:04]} 36. g3 {[%clk 0:01:13]}  Ke5 {[%clk 0:01:00]} 37. Rg7 {[%clk 0:01:04]}  Rg4 {[%clk 0:01:00]} 38. Kd3 {[%clk 0:00:51]}  c5 {[%clk 0:00:56]} 39. Rg8 {[%clk 0:00:46]}  Kd6 {[%clk 0:00:39]} 40. Rg7 {[%clk 0:00:42]}  d4 {[%clk 0:00:33]} 41. exd4 {[%clk 0:00:37]}  Rxd4+ {[%clk 0:00:34]} 42. Kc3 {[%clk 0:00:32]}  Rg4 {[%clk 0:00:33]} 43. Kd3 {[%clk 0:00:32]}  Ke6 {[%clk 0:00:29]} 44. Ke3 {[%clk 0:00:31]}  Kf6 {[%clk 0:00:24]} 45. Rc7 {[%clk 0:00:31]}  Re4+ {[%clk 0:00:15]} 46. Kd3 {[%clk 0:00:26]}  Rd4+ {[%clk 0:00:16]} 47. Kc3 {[%clk 0:00:22]}  Rd5 {[%clk 0:00:11]} 48. Rc6+ {[%clk 0:00:22]}  Kf7 {[%clk 0:00:10]} 49. Ra6 {[%clk 0:00:20]}  Rd4 {[%clk 0:00:06]} 50. Ra5 {[%clk 0:00:19]}  Re4 {[%clk 0:00:05]} 51. Rxc5 {[%clk 0:00:12]}  Re2 {[%clk 0:00:05]} 52. Rc4 {[%clk 0:00:13]}  Rxf2 {[%clk 0:00:05]} 53. Rxa4 {[%clk 0:00:13]}  Rf3+ {[%clk 0:00:05]} 54. Kd2 {[%clk 0:00:13]}  Rxg3 {[%clk 0:00:06]} 55. b4 {[%clk 0:00:09]}  Rg4 {[%clk 0:00:04]} 56. Ra8 {[%clk 0:00:07]}  Rxh4 {[%clk 0:00:04]} 57. b5 {[%clk 0:00:07]}  Rh2+ {[%clk 0:00:03]} 58. Ke3 {[%clk 0:00:07]}  Rb2 {[%clk 0:00:03]} 59. a4 {[%clk 0:00:08]}  h4 {[%clk 0:00:03]} 60. Rb8 {[%clk 0:00:07]}  h3 {[%clk 0:00:03]} 61. b6 {[%clk 0:00:05]}  h2 {[%clk 0:00:03]} 62. Rh8 {[%clk 0:00:05]}  Rxb6 {[%clk 0:00:03]} 63. Rxh2 {[%clk 0:00:06]}  Rb3+ {[%clk 0:00:03]} 64. Kf4 {[%clk 0:00:04]}  Rb4+ {[%clk 0:00:03]} 65. Kg5 {[%clk 0:00:04]}  Rg4+ {[%clk 0:00:04]} 66. Kh6 {[%clk 0:00:03]}  Rxa4 {[%clk 0:00:05]} 67. Rb2 {[%clk 0:00:03]}  Rh4+ {[%clk 0:00:04]} 68. Kg5 {[%clk 0:00:03]}  Rg4+ {[%clk 0:00:05]} 69. Kh6 {[%clk 0:00:04]}  f4 {[%clk 0:00:04]} 70. Rb4 {[%clk 0:00:03]}  Kf6 {[%clk 0:00:04]} 71. Rb5 {[%clk 0:00:03]}  f3 {[%clk 0:00:04]} 72. Rc5 {[%clk 0:00:02]}  Rg3 {[%clk 0:00:04]} 73. Rc3 {[%clk 0:00:02]}  Kf5 {[%clk 0:00:05]} 74. Rc4 {[%clk 0:00:02]}  f2 {[%clk 0:00:05]} 75. Rh4 {[%clk 0:00:02]}  f1=Q {[%clk 0:00:04]} 76. Kg7 {[%clk 0:00:03]} 0-1


[Site "https://www.chess.com"]

[Event "Titled Tuesday Blitz June 13 Late 2023"]
[White "Holt, Conrad"]
[Black "Zaitsev, Alexander"]
[WhiteFideId "2034387"]
[BlackFideId "4164490"]
[WhiteElo "2592"]
[BlackElo "2373"]
[Result "1-0"]
[Round "1"]
[TimeControl "180+2"]
[Date "2023.06.13"]
[WhiteClock "0:00:20"]
[BlackClock "0:00:00"]
[Board "44"]

1. d4 {[%clk 0:02:46]}  Nf6 {[%clk 0:02:59]} 2. c4 {[%clk 0:02:46]}  e6 {[%clk 0:03:00]} 3. Nc3 {[%clk 0:02:46]}  Bb4 {[%clk 0:03:01]} 4. Qc2 {[%clk 0:02:47]}  O-O {[%clk 0:03:01]} 5. e4 {[%clk 0:02:47]}  d6 {[%clk 0:03:00]} 6. a3 {[%clk 0:02:46]}  Bxc3+ {[%clk 0:02:57]} 7. bxc3 {[%clk 0:02:47]}  c5 {[%clk 0:02:42]} 8. e5 {[%clk 0:02:44]}  dxe5 {[%clk 0:02:27]} 9. dxe5 {[%clk 0:02:44]}  Nfd7 {[%clk 0:02:27]} 10. Nf3 {[%clk 0:02:43]}  Nc6 {[%clk 0:02:21]} 11. Bf4 {[%clk 0:02:29]}  f6 {[%clk 0:02:09]} 12. Bd3 {[%clk 0:02:22]}  Ndxe5 {[%clk 0:01:52]} 13. Nxe5 {[%clk 0:02:13]}  Nxe5 {[%clk 0:01:47]} 14. Bxh7+ {[%clk 0:02:10]}  Kh8 {[%clk 0:01:47]} 15. Bxe5 {[%clk 0:02:08]}  fxe5 {[%clk 0:01:48]} 16. O-O {[%clk 0:02:05]}  Bd7 {[%clk 0:01:25]} 17. Rad1 {[%clk 0:02:01]}  Qe7 {[%clk 0:01:08]} 18. Be4 {[%clk 0:01:57]}  Be8 {[%clk 0:00:59]} 19. Rd3 {[%clk 0:01:55]}  Rf6 {[%clk 0:00:54]} 20. Rh3+ {[%clk 0:01:40]}  Rh6 {[%clk 0:00:48]} 21. Rxh6+ {[%clk 0:01:38]}  gxh6 {[%clk 0:00:49]} 22. Qd2 {[%clk 0:01:28]}  Kg7 {[%clk 0:00:40]} 23. Qe3 {[%clk 0:01:24]}  Rd8 {[%clk 0:00:39]} 24. Bc2 {[%clk 0:01:12]}  Qf6 {[%clk 0:00:32]} 25. Qxc5 {[%clk 0:01:09]}  Rd2 {[%clk 0:00:32]} 26. Be4 {[%clk 0:00:56]}  Qf4 {[%clk 0:00:14]} 27. Bxb7 {[%clk 0:00:48]}  Bh5 {[%clk 0:00:07]} 28. Qc7+ {[%clk 0:00:36]}  Kh8 {[%clk 0:00:03]} 29. g3 {[%clk 0:00:33]}  Qf6 {[%clk 0:00:03]} 30. Qb8+ {[%clk 0:00:20]}  Kg7 {[%clk 0:00:02]} 31. Bg2 {[%clk 0:00:20]}  Be2 {[%clk 0:00:00]} 32. Qxa7+ {[%clk 0:00:20]} 1-0


[Site "https://www.chess.com"]

[Event "Titled Tuesday Blitz June 13 Late 2023"]
[White "Maksimovic, Bojan"]
[Black "Rios Escobar, Adan"]
[WhiteFideId "14408120"]
[BlackFideId "3403645"]
[WhiteElo "2457"]
[BlackElo "2465"]
[Result "0-1"]
[Round "1"]
[TimeControl "180+2"]
[Date "2023.06.13"]
[WhiteClock "0:00:14"]
[BlackClock "0:00:11"]
[Board "48"]

1. Nf3 {[%clk 0:03:00]}  Nf6 {[%clk 0:02:50]} 2. g3 {[%clk 0:02:57]}  g6 {[%clk 0:02:51]} 3. Bg2 {[%clk 0:02:57]}  Bg7 {[%clk 0:02:51]} 4. d3 {[%clk 0:02:58]}  c5 {[%clk 0:02:52]} 5. Bd2 {[%clk 0:02:58]}  d6 {[%clk 0:02:52]} 6. Qc1 {[%clk 0:02:58]}  h5 {[%clk 0:02:45]} 7. h3 {[%clk 0:02:53]}  Nc6 {[%clk 0:02:43]} 8. Nc3 {[%clk 0:02:53]}  e5 {[%clk 0:02:41]} 9. e4 {[%clk 0:02:49]}  Nd4 {[%clk 0:02:28]} 10. O-O {[%clk 0:02:47]}  Nxf3+ {[%clk 0:02:25]} 11. Bxf3 {[%clk 0:02:48]}  Bxh3 {[%clk 0:02:25]} 12. Bg5 {[%clk 0:02:48]}  Qd7 {[%clk 0:02:18]} 13. Bg2 {[%clk 0:02:40]}  Bxg2 {[%clk 0:02:17]} 14. Kxg2 {[%clk 0:02:41]}  Nh7 {[%clk 0:02:10]} 15. Nd5 {[%clk 0:02:39]}  f6 {[%clk 0:01:46]} 16. Be3 {[%clk 0:02:34]}  h4 {[%clk 0:01:39]} 17. Rh1 {[%clk 0:02:33]}  hxg3 {[%clk 0:01:27]} 18. fxg3 {[%clk 0:02:34]}  O-O-O {[%clk 0:01:20]} 19. b4 {[%clk 0:02:33]}  f5 {[%clk 0:01:06]} 20. Qa3 {[%clk 0:02:06]}  Nf6 {[%clk 0:01:02]} 21. Qxa7 {[%clk 0:01:55]}  Nxd5 {[%clk 0:01:00]} 22. exd5 {[%clk 0:01:56]}  f4 {[%clk 0:00:52]} 23. Bf2 {[%clk 0:00:51]}  f3+ {[%clk 0:00:34]} 24. Kxf3 {[%clk 0:00:43]}  Rdf8+ {[%clk 0:00:30]} 25. Kg2 {[%clk 0:00:40]}  Qg4 {[%clk 0:00:15]} 26. Qa8+ {[%clk 0:00:22]}  Kc7 {[%clk 0:00:14]} 27. Qa5+ {[%clk 0:00:22]}  Kb8 {[%clk 0:00:14]} 28. Rh4 {[%clk 0:00:13]}  Qf3+ {[%clk 0:00:13]} 29. Kh3 {[%clk 0:00:13]}  Rxh4+ {[%clk 0:00:12]} 30. Kxh4 {[%clk 0:00:14]}  Qh5# {[%clk 0:00:11]} 0-1


[Site "https://www.chess.com"]

[Event "Titled Tuesday Blitz June 13 Late 2023"]
[White "Kielinkei"]
[Black "Horvath, Dominik"]
[BlackFideId "1642561"]
[WhiteElo "2459"]
[BlackElo "2407"]
[Result "1/2-1/2"]
[Round "1"]
[TimeControl "180+2"]
[Date "2023.06.13"]
[WhiteClock "0:00:35"]
[BlackClock "0:00:20"]
[Board "51"]

1. d4 {[%clk 0:03:00]}  Nf6 {[%clk 0:02:58]} 2. c4 {[%clk 0:02:59]}  e6 {[%clk 0:02:39]} 3. g3 {[%clk 0:02:58]}  d5 {[%clk 0:02:36]} 4. Bg2 {[%clk 0:02:58]}  Be7 {[%clk 0:02:17]} 5. Nf3 {[%clk 0:02:58]}  O-O {[%clk 0:02:17]} 6. Qc2 {[%clk 0:02:55]}  a6 {[%clk 0:02:15]} 7. cxd5 {[%clk 0:02:45]}  exd5 {[%clk 0:02:16]} 8. O-O {[%clk 0:02:45]}  Re8 {[%clk 0:02:09]} 9. Nc3 {[%clk 0:02:44]}  Bf8 {[%clk 0:01:58]} 10. Bg5 {[%clk 0:02:37]}  c6 {[%clk 0:01:49]} 11. Ne5 {[%clk 0:02:31]}  Nbd7 {[%clk 0:01:48]} 12. Nxd7 {[%clk 0:02:24]}  Bxd7 {[%clk 0:01:49]} 13. e4 {[%clk 0:02:17]}  dxe4 {[%clk 0:01:42]} 14. Nxe4 {[%clk 0:02:17]}  Be7 {[%clk 0:01:42]} 15. Nxf6+ {[%clk 0:02:13]}  Bxf6 {[%clk 0:01:43]} 16. Bxf6 {[%clk 0:02:14]}  Qxf6 {[%clk 0:01:44]} 17. d5 {[%clk 0:02:15]}  Bf5 {[%clk 0:01:40]} 18. Qb3 {[%clk 0:02:09]}  cxd5 {[%clk 0:01:36]} 19. Qxd5 {[%clk 0:01:55]}  b5 {[%clk 0:01:31]} 20. b3 {[%clk 0:01:42]}  Rad8 {[%clk 0:01:29]} 21. Qf3 {[%clk 0:01:41]}  h6 {[%clk 0:01:23]} 22. Rfe1 {[%clk 0:01:40]}  Qg6 {[%clk 0:01:14]} 23. Rad1 {[%clk 0:01:12]}  Rxd1 {[%clk 0:00:54]} 24. Qxd1 {[%clk 0:01:12]}  Be6 {[%clk 0:00:51]} 25. Qd6 {[%clk 0:01:04]}  a5 {[%clk 0:00:40]} 26. Qc6 {[%clk 0:01:02]}  Rb8 {[%clk 0:00:30]} 27. Qc7 {[%clk 0:01:01]}  Rc8 {[%clk 0:00:26]} 28. Qxa5 {[%clk 0:00:51]}  Qd3 {[%clk 0:00:22]} 29. Bf1 {[%clk 0:00:45]}  Qf3 {[%clk 0:00:19]} 30. Bg2 {[%clk 0:00:36]}  Qd3 {[%clk 0:00:20]} 31. Bf1 {[%clk 0:00:35]}  Qf3 {[%clk 0:00:20]} 32. Bg2 {[%clk 0:00:35]}  Qd3 {[%clk 0:00:20]} 1/2-1/2


[Site "https://www.chess.com"]

[Event "Titled Tuesday Blitz June 13 Late 2023"]
[White "Talibov, Shiroghlan"]
[Black "ArchibaldCerveza29"]
[WhiteFideId "13429078"]
[WhiteElo "2274"]
[BlackElo "2456"]
[Result "1-0"]
[Round "1"]
[TimeControl "180+2"]
[Date "2023.06.13"]
[WhiteClock "0:00:54"]
[BlackClock "0:00:03"]
[Board "54"]

1. d4 {[%clk 0:02:55]}  d5 {[%clk 0:02:59]} 2. Nf3 {[%clk 0:02:41]}  Nf6 {[%clk 0:02:58]} 3. c4 {[%clk 0:02:35]}  e6 {[%clk 0:02:56]} 4. Nc3 {[%clk 0:02:34]}  c6 {[%clk 0:02:55]} 5. Bg5 {[%clk 0:02:31]}  Nbd7 {[%clk 0:02:53]} 6. e3 {[%clk 0:02:26]}  Qa5 {[%clk 0:02:51]} 7. Rc1 {[%clk 0:02:22]}  Ne4 {[%clk 0:02:50]} 8. Bf4 {[%clk 0:02:19]}  Bb4 {[%clk 0:02:48]} 9. Qb3 {[%clk 0:02:17]}  O-O {[%clk 0:02:22]} 10. Bd3 {[%clk 0:02:15]}  c5 {[%clk 0:01:57]} 11. O-O {[%clk 0:02:08]}  cxd4 {[%clk 0:01:53]} 12. exd4 {[%clk 0:02:07]}  dxc4 {[%clk 0:01:44]} 13. Qxc4 {[%clk 0:02:04]}  Bxc3 {[%clk 0:01:08]} 14. bxc3 {[%clk 0:02:02]}  Ndf6 {[%clk 0:01:07]} 15. Rfe1 {[%clk 0:01:58]}  Qd5 {[%clk 0:00:38]} 16. Qa4 {[%clk 0:01:51]}  Bd7 {[%clk 0:00:37]} 17. Qc2 {[%clk 0:01:49]}  Bc6 {[%clk 0:00:36]} 18. Ne5 {[%clk 0:01:42]}  Nd6 {[%clk 0:00:24]} 19. Nxc6 {[%clk 0:01:41]}  Qxc6 {[%clk 0:00:21]} 20. Be5 {[%clk 0:01:42]}  h6 {[%clk 0:00:16]} 21. Bxf6 {[%clk 0:01:42]}  gxf6 {[%clk 0:00:17]} 22. Qd2 {[%clk 0:01:42]}  Kg7 {[%clk 0:00:16]} 23. Re3 {[%clk 0:01:40]}  Rh8 {[%clk 0:00:16]} 24. Rg3+ {[%clk 0:01:39]}  Kf8 {[%clk 0:00:17]} 25. Qf4 {[%clk 0:01:39]}  Ke7 {[%clk 0:00:17]} 26. Rf3 {[%clk 0:01:37]}  f5 {[%clk 0:00:16]} 27. Qh4+ {[%clk 0:01:36]}  Kd7 {[%clk 0:00:16]} 28. c4 {[%clk 0:01:35]}  Rhg8 {[%clk 0:00:16]} 29. d5 {[%clk 0:01:33]}  exd5 {[%clk 0:00:14]} 30. Bxf5+ {[%clk 0:01:33]}  Kc7 {[%clk 0:00:14]} 31. c5 {[%clk 0:01:29]}  Nc4 {[%clk 0:00:10]} 32. Qe7+ {[%clk 0:01:26]}  Kb8 {[%clk 0:00:11]} 33. Qxf7 {[%clk 0:01:24]}  Rd8 {[%clk 0:00:10]} 34. Rg3 {[%clk 0:01:14]}  a6 {[%clk 0:00:10]} 35. h4 {[%clk 0:01:13]}  Ka7 {[%clk 0:00:10]} 36. Qg7 {[%clk 0:01:07]}  Re8 {[%clk 0:00:09]} 37. Qd4 {[%clk 0:01:07]}  Rad8 {[%clk 0:00:08]} 38. Bd3 {[%clk 0:01:07]}  Ne5 {[%clk 0:00:08]} 39. Rb1 {[%clk 0:01:06]}  Nxd3 {[%clk 0:00:09]} 40. Rxd3 {[%clk 0:01:07]}  Re7 {[%clk 0:00:08]} 41. Rb6 {[%clk 0:01:06]}  Qc7 {[%clk 0:00:06]} 42. Rd6 {[%clk 0:01:03]}  Rc8 {[%clk 0:00:04]} 43. c6+ {[%clk 0:01:03]}  Ka8 {[%clk 0:00:03]} 44. Qxd5 {[%clk 0:01:00]}  bxc6 {[%clk 0:00:03]} 45. Qc4 {[%clk 0:00:58]}  Re1+ {[%clk 0:00:04]} 46. Kh2 {[%clk 0:00:58]}  Ka7 {[%clk 0:00:02]} 47. f4 {[%clk 0:00:56]}  Qe7 {[%clk 0:00:01]} 48. Rd7+ {[%clk 0:00:55]}  Rc7 {[%clk 0:00:01]} 49. Rxe7 {[%clk 0:00:54]}  Rcxe7 {[%clk 0:00:02]} 50. Qc5+ {[%clk 0:00:55]}  Ka8 {[%clk 0:00:02]} 51. Qxc6+ {[%clk 0:00:54]}  Kb8 {[%clk 0:00:02]} 52. Rd8+ {[%clk 0:00:53]}  Ka7 {[%clk 0:00:03]} 53. Ra8# {[%clk 0:00:54]} 1-0


[Site "https://www.chess.com"]